Department family,Entity,Date,Expense Type,Expense area,Supplier,Transation number,Amount,Narrative
Department for Culture Media and Sport,Department for Culture Media and Sport,08/08/2017,Current Grants Private Sector,Youth Policy & NCS,Virgin Money Foundation,50003266,"175,127.00",A1539 VMF LIBOR Q2 1718
Department for Culture Media and Sport,Department for Culture Media and Sport,01/08/2017,Current Grants Private Sector,GIA Architecture+Heritage,Greenwich Foundation for the RN College,50003270,"80,666.00",ORNC- August 2017 Grant Payment
Department for Culture Media and Sport,Department for Culture Media and Sport,01/08/2017,Grant-in-Aid (DCMS NDPBs),GIA Arts bodies,Arts Council of England,50003292,"25,625,861.00",Arts Council England  GiA August 2017
Department for Culture Media and Sport,Department for Culture Media and Sport,01/08/2017,Grant-in-Aid (DCMS NDPBs),GIA British Film Institute,British Film Institute,50003293,"2,729,337.00",British Film Institute  GiA August 2017
Department for Culture Media and Sport,Department for Culture Media and Sport,01/08/2017,Grant-in-Aid (DCMS NDPBs),GIA Libraries bodies,British Library,50003294,"3,037,863.00",British Library GiA August 2017
Department for Culture Media and Sport,Department for Culture Media and Sport,01/08/2017,Grant-in-Aid (DCMS NDPBs),GIA Museums & Galleries,British Museum,50003295,"3,086,000.00",British Museum  GiA August 2017
Department for Culture Media and Sport,Department for Culture Media and Sport,01/08/2017,Grant-in-Aid (DCMS NDPBs),GIA Tourism bodies,VisitBritain,50003296,"3,500,000.00",Visit Britain  GiA August 2017
Department for Culture Media and Sport,Department for Culture Media and Sport,01/08/2017,Grant-in-Aid (DCMS NDPBs),GIA Architecture+Heritage,Churches Conservation Trust,50003297,"300,000.00",Churches Conservation Trust GiA August 2017
Department for Culture Media and Sport,Department for Culture Media and Sport,03/08/2017,Grant-in-Aid (DCMS NDPBs),GIA Architecture+Heritage,Historic England (GIA),50003298,"6,450,000.00",Historic England GiA August 2017
Department for Culture Media and Sport,Department for Culture Media and Sport,01/08/2017,Grant-in-Aid (DCMS NDPBs),GIA Museums & Galleries,Geffrye Museum,50003299,"124,666.00",Geffrye Museum GiA August 2017
Department for Culture Media and Sport,Department for Culture Media and Sport,01/08/2017,Grant-in-Aid (DCMS NDPBs),GIA Museums & Galleries,Horniman Museum,50003300,"315,664.00",Horniman Museum GiA August 2017
Department for Culture Media and Sport,Department for Culture Media and Sport,01/08/2017,Grant-in-Aid (DCMS NDPBs),GIA Museums & Galleries,Imperial War Museum,50003302,"1,142,003.00",Imperial War Museum GiA August 2017
Department for Culture Media and Sport,Department for Culture Media and Sport,03/08/2017,Grant-in-Aid (DCMS NDPBs),GIA Museums & Galleries,National Gallery,50003303,"2,393,742.00",National Gallery GiA August 2017
Department for Culture Media and Sport,Department for Culture Media and Sport,03/08/2017,Grant-in-Aid (DCMS NDPBs),GIA Museums & Galleries,National Maritime Museum,50003304,"1,293,333.00",RMG GiA August 2017
Department for Culture Media and Sport,Department for Culture Media and Sport,01/08/2017,Grant-in-Aid (DCMS NDPBs),GIA Museums & Galleries,National Museums & Galleries Merseyside,50003305,"658,073.00",NML GiA August 2017
Department for Culture Media and Sport,Department for Culture Media and Sport,01/08/2017,Grant-in-Aid (DCMS NDPBs),GIA Museums & Galleries,National Portrait Gallery,50003306,"852,750.00",National Portrait Gallery GiA August 2017
Department for Culture Media and Sport,Department for Culture Media and Sport,01/08/2017,Grant-in-Aid (DCMS NDPBs),GIA Museums & Galleries,Natural History Museum,50003307,"3,484,583.00",National History Museum GiA August 2017
Department for Culture Media and Sport,Department for Culture Media and Sport,01/08/2017,Grant-in-Aid (DCMS NDPBs),OFCOM,OFCOM,50003308,"121,856.00",OfOrp GiA August 2017
Department for Culture Media and Sport,Department for Culture Media and Sport,01/08/2017,Grant-in-Aid (DCMS NDPBs),OFCOM,OFCOM,50003309,"3,900,781.00",OfSpMa GiA August 2017
Department for Culture Media and Sport,Department for Culture Media and Sport,01/08/2017,Grant-in-Aid (DCMS NDPBs),OFCOM,OFCOM,50003310,"4,725,239.00",OfUHF GiA August 2017
Department for Culture Media and Sport,Department for Culture Media and Sport,01/08/2017,Grant-in-Aid (DCMS NDPBs),GIA Museums & Galleries,The Royal Armouries,50003311,"498,799.00",Royal Armouries GiA August 2017
Department for Culture Media and Sport,Department for Culture Media and Sport,01/08/2017,Grant-in-Aid (DCMS NDPBs),GIA S4C Welsh Fourth Channel,S4C-Sianel Pedwar Cymru-all inv inc. GIA,50003312,"554,000.00",S4C GiA August 2017
Department for Culture Media and Sport,Department for Culture Media and Sport,01/08/2017,Grant-in-Aid (DCMS NDPBs),GIA Museums & Galleries,Science Museum Group (ex-NMSI),50003313,"3,312,000.00",SMG GiA August 2017
Department for Culture Media and Sport,Department for Culture Media and Sport,01/08/2017,Grant-in-Aid (DCMS NDPBs),GIA Sports bodies,Sport Ground Safety Authority,50003314,"127,000.00",SGSA GiA August 2017
Department for Culture Media and Sport,Department for Culture Media and Sport,01/08/2017,Grant-in-Aid (DCMS NDPBs),GIA Museums & Galleries,Sir John Soane's Museum,50003315,"82,000.00",SJSM GiA August 2017
Department for Culture Media and Sport,Department for Culture Media and Sport,01/08/2017,Grant-in-Aid (DCMS NDPBs),GIA Sports bodies,Sport England,50003316,"4,000,000.00",SE GiA August 2017
Department for Culture Media and Sport,Department for Culture Media and Sport,03/08/2017,Grant-in-Aid (DCMS NDPBs),GIA Museums & Galleries,Tate Gallery,50003317,"3,172,166.00",TATE GiA August 2017
Department for Culture Media and Sport,Department for Culture Media and Sport,03/08/2017,Grant-in-Aid (DCMS NDPBs),GIA Sports bodies,United Kingdom Sports Council,50003318,"1,666,285.00",UK Sports Council GiA August 2017
Department for Culture Media and Sport,Department for Culture Media and Sport,01/08/2017,Grant-in-Aid (DCMS NDPBs),GIA Sports bodies,United Kingdom Anti Doping Ltd,50003319,"500,000.00",UKAD GiA August 2017
Department for Culture Media and Sport,Department for Culture Media and Sport,01/08/2017,Grant-in-Aid (DCMS NDPBs),GIA Museums & Galleries,Victoria & Albert Museum,50003320,"3,095,500.00",V&A GiA August 2017
Department for Culture Media and Sport,Department for Culture Media and Sport,01/08/2017,Grant-in-Aid (DCMS NDPBs),GIA Museums & Galleries,Wallace Collection,50003321,"300,000.00",TWC GiA August 2017
Department for Culture Media and Sport,Department for Culture Media and Sport,03/08/2017,Grant-in-Aid (DCMS NDPBs),GIA Gambling + Lottery bodies,National Lottery Commission,50003322,"425,788.00",NLC GiA August 2017
Department for Culture Media and Sport,Department for Culture Media and Sport,11/08/2017,Grant to BBC:Home Broadcasting,Home Broadcasting:Grant to BBC,British Broadcasting Corporation,50003323,"249,968,351.00",BBC GiA August 2017 2017
Department for Culture Media and Sport,Department for Culture Media and Sport,01/08/2017,Current Grants Private Sector,PASO,Rosa,50003335,"32,917.00",A1610 ROSA TAMPON TAX Q2 1718
Department for Culture Media and Sport,Department for Culture Media and Sport,14/08/2017,Current Grants Private Sector,Youth Policy & NCS,BRITISH YOUTH COUNCIL,50003336,"56,941.75",A1450 British Youth Council Q2 1718
Department for Culture Media and Sport,Department for Culture Media and Sport,01/08/2017,Grant to OGD (Resource),OFCOM,OFCOM,50003337,"142,920.00",Ofcom Community Radio 1718 -1st Install
Department for Culture Media and Sport,Department for Culture Media and Sport,03/08/2017,Current Grants Private Sector,LPW and Ecclesiastical,The Archbishops Council,50003339,"101,446.38",CCB01/001 Wells Cathedral grant Aug 2nd
Department for Culture Media and Sport,Department for Culture Media and Sport,03/08/2017,Current Grants Private Sector,LPW and Ecclesiastical,The Archbishops Council,50003340,"26,390.77",CCB03/001 Blackburn Cathedral grant Aug
Department for Culture Media and Sport,Department for Culture Media and Sport,03/08/2017,Current Grants Private Sector,LPW and Ecclesiastical,The Archbishops Council,50003341,"35,633.39",CCB11/001 Coventry Cathedral grant Aug 1
Department for Culture Media and Sport,Department for Culture Media and Sport,03/08/2017,Current Grants Private Sector,LPW and Ecclesiastical,The Archbishops Council,50003342,"65,591.73",CCB12/001 Derby Cathedral grant Aug 17
Department for Culture Media and Sport,Department for Culture Media and Sport,03/08/2017,Current Grants Private Sector,LPW and Ecclesiastical,The Archbishops Council,50003345,"109,122.52",CCB99/180 Plymouth RC Cathedral grant
Department for Culture Media and Sport,Department for Culture Media and Sport,03/08/2017,Current Grants Private Sector,LPW and Ecclesiastical,The Archbishops Council,50003346,"30,731.72",CCB46/001 Ripon Cathedral grant Aug 17
Department for Culture Media and Sport,Department for Culture Media and Sport,03/08/2017,Current Grants Private Sector,LPW and Ecclesiastical,The Archbishops Council,50003350,"87,686.77",CCB38/001 Southwell Cathedral Aug 17
Department for Culture Media and Sport,Department for Culture Media and Sport,03/08/2017,Current Grants Private Sector,LPW and Ecclesiastical,The Archbishops Council,50003351,"71,465.30",CCB39/001 Truro Cathedral grant Aug 17
Department for Culture Media and Sport,Department for Culture Media and Sport,03/08/2017,Current Grants Private Sector,LPW and Ecclesiastical,The Archbishops Council,50003352,"42,500.00",CCB40/001 Wakefield Cathedral Aug17
Department for Culture Media and Sport,Department for Culture Media and Sport,03/08/2017,Current Grants Private Sector,LPW and Ecclesiastical,The Archbishops Council,50003353,"90,553.93",CCB41/001 Winchester Cathedral Aug 17
Department for Culture Media and Sport,Department for Culture Media and Sport,03/08/2017,Current Grants Private Sector,LPW and Ecclesiastical,The Archbishops Council,50003354,"65,233.20",CCB42/001 Worcester Cathedral 1 Aug 17
Department for Culture Media and Sport,Department for Culture Media and Sport,25/08/2017,Capital Grant Private Sector,Grant support to NFTS,National Film & Television School,50003356,"186,000.00",NFTS - AUGUST 2017 GRANT PAYMENT
Department for Culture Media and Sport,Department for Culture Media and Sport,25/08/2017,Capital Grant Private Sector,Grant support to NFTS,National Film & Television School,50003356,"19,421.00",NFTS - AUGUST 2017 GRANT PAYMENT
Department for Culture Media and Sport,Department for Culture Media and Sport,07/08/2017,Current Grants Private Sector,LPW and Ecclesiastical,Topmark Claims Management Ltd,50003357,"569,626.31",Funding for Listed Places of Worship 270717_020817
Department for Culture Media and Sport,Department for Culture Media and Sport,07/08/2017,Capital Grants to LAs,Broadband UK Capital+Programme,Northumberland County Council,50003359,"702,747.00",RUTWO NTHM C3 Q4 16-17
Department for Culture Media and Sport,Department for Culture Media and Sport,07/08/2017,Capital Grants to LAs,Broadband UK Capital+Programme,East Sussex County Council,50003360,"892,014.00",RUTWO ESUS C4 Q4 16-17
Department for Culture Media and Sport,Department for Culture Media and Sport,07/08/2017,Capital Grants to LAs,Broadband UK Capital+Programme,Cumbria County Council,50003361,"539,078.00",RUTWO CMBR C3 Q4 16-17
Department for Culture Media and Sport,Department for Culture Media and Sport,10/08/2017,Current Grants Private Sector,Media - Programme Costs,Multiplex Broadcasting Services NI Ltd,50003364,"48,810.12",Grant Claim for NI Multiplex Programme
Department for Culture Media and Sport,Department for Culture Media and Sport,10/08/2017,Capital Grants to LAs,Broadband UK Capital+Programme,Cornwall Council,50003365,"400,992.00",RUTWO CORN C3 Q3 16-17
Department for Culture Media and Sport,Department for Culture Media and Sport,10/08/2017,Capital Grants to LAs,Broadband UK Capital+Programme,Shropshire Council,50003366,"57,334.00",RUTWO SHRP C2 Q4 16-17
Department for Culture Media and Sport,Department for Culture Media and Sport,10/08/2017,Capital Grants to LAs,Broadband UK Capital+Programme,Nottinghamshire County Council,50003367,"905,160.00",RUTWO NOTT C3 Q4 16-17
Department for Culture Media and Sport,Department for Culture Media and Sport,10/08/2017,Capital Grants to LAs,Broadband UK Capital+Programme,Cornwall Council,50003368,"969,902.00",RUTWO CORN C4 Q4 16-17
Department for Culture Media and Sport,Department for Culture Media and Sport,16/08/2017,Payments under GIS Indemnity,Museums+Cultural PropertyProgs,Burges Salmon LLP,50003369,"4,200,000.00",GIS LOSS OF ZOFFANY PAINTING
Department for Culture Media and Sport,Department for Culture Media and Sport,14/08/2017,Current Grants Private Sector,LPW and Ecclesiastical,Topmark Claims Management Ltd,50003370,"931,771.32",Funding for LPW020817_090817
Department for Culture Media and Sport,Department for Culture Media and Sport,23/08/2017,Current Grants Private Sector,Social Action,Westbank Community Health and Care,50003372,"37,500.00",A1646 Westbank period 5 1718
Department for Culture Media and Sport,Department for Culture Media and Sport,17/08/2017,Capital Grants to LAs,Broadband UK Capital+Programme,NYnet Ltd,50003376,"122,223.00",RUUSC NYNT AUG C12 17-18
Department for Culture Media and Sport,Department for Culture Media and Sport,18/08/2017,Current Grants Private Sector,PASO,Public Service Broadcasting Trust,50003377,"82,700.00",A1661 Fixers (Public Service Broadcastin
Department for Culture Media and Sport,Department for Culture Media and Sport,30/08/2017,Capital Grant Private Sector,PASO,Midlands Air Ambulance Charity,50003379,"1,000,000.00",a1716Midlands Air Ambulance(Capital) Q2
Department for Culture Media and Sport,Department for Culture Media and Sport,23/08/2017,Current Grants Private Sector,LPW and Ecclesiastical,Topmark Claims Management Ltd,50003412,"462,574.51",funding for LPW 090817_160817
Department for Culture Media and Sport,Department for Culture Media and Sport,24/08/2017,Capital Grants to LAs,Broadband UK Capital+Programme,Derbyshire County Council,50003414,"773,265.00",RUTWO DRBY C4 Q4 16-17
Department for Culture Media and Sport,Department for Culture Media and Sport,31/08/2017,Capital Grants to LAs,Broadband UK Capital+Programme,Northamptonshire County Council,50003416,"59,273.00",RUTWO NTNS C2 Q2 17-18
Department for Culture Media and Sport,Department for Culture Media and Sport,29/08/2017,Current Grants Private Sector,LPW and Ecclesiastical,Topmark Claims Management Ltd,50003421,"977,617.40",Funding for Listed Places of Worship 160817-230817
Department for Culture Media and Sport,Department for Culture Media and Sport,29/08/2017,Current Grants Private Sector,Youth Policy & NCS,National Citizen Service,50003423,"39,283,493.00",A1557 NCS Programme Q2 p.5 1718
Department for Culture Media and Sport,Department for Culture Media and Sport,31/08/2017,Management of Grant Programmes,LPW and Ecclesiastical,Topmark Claims Mgt (Fees A/C),50003428,"52,875.00",
Department for Culture Media and Sport,Department for Culture Media and Sport,31/08/2017,Management of Grant Programmes,LPW and Ecclesiastical,Topmark Claims Mgt (Fees A/C),50003428,213.2,
Department for Culture Media and Sport,Department for Culture Media and Sport,31/08/2017,Management of Grant Programmes,LPW and Ecclesiastical,Topmark Claims Mgt (Fees A/C),50003429,"51,475.00",
Department for Culture Media and Sport,Department for Culture Media and Sport,31/08/2017,Management of Grant Programmes,LPW and Ecclesiastical,Topmark Claims Mgt (Fees A/C),50003429,225.6,
